[Event "Gibraltar Masters 18th"]
[Site "Gibraltar"]
[Date "2020.01.27"]
[Round "7.2"]
[White "Pichot, Alan"]
[Black "Maghsoodloo, Parham"]
[Result "0-1"]
[ECO "C07"]
[WhiteElo "2606"]
[BlackElo "2674"]
[PlyCount "106"]
[EventDate "2020.01.21"]
[EventType "swiss"]
[EventRounds "10"]
[EventCountry "GGB"]
[SourceTitle "BritBase"]
[Source "John Saunders"]
[SourceDate "2021.06.05"]
[SourceVersion "1"]
[SourceVersionDate "2021.06.05"]
[SourceQuality "1"]
[TimeControl "40/100:0"]
[WhiteClock "0:15:30"]
[BlackClock "0:36:35"]

1. e4 {[%emt 0:00:00]} e6 {[%emt 0:00:00]} 2. d4 {[%emt 0:00:00]} d5 {[%emt 0:
00:00]} 3. Nd2 {[%emt 0:00:00]} c5 {[%emt 0:00:00]} 4. Ngf3 {[%emt 0:00:00]}
cxd4 {[%emt 0:00:00]} 5. Nxd4 {[%emt 0:00:00]} Nf6 {[%emt 0:00:00]} 6. exd5 {
[%emt 0:00:00]} Nxd5 {[%emt 0:00:00]} 7. N2f3 {[%emt 0:00:00]} Be7 {[%emt 0:00:
00]} 8. g3 {[%emt 0:00:00]} O-O {[%emt 0:00:00]} 9. Bg2 {[%emt 0:00:00]} b5 {
[%emt 0:00:00]} 10. O-O {[%emt 0:00:00]} a6 {[%emt 0:00:00]} 11. c3 {[%emt 0:
00:00]} Bb7 {[%emt 0:00:00]} 12. a4 {[%emt 0:00:00]} bxa4 {[%emt 0:00:00]} 13.
Qxa4 {[%emt 0:00:00]} Nd7 {[%emt 0:00:00]} 14. Rd1 {[%emt 0:00:00]} Qc8 {
[%emt 0:00:00]} 15. Bg5 {[%emt 0:00:00]} Bd6 {[%emt 0:00:00]} 16. Bd2 {[%emt 0:
00:00]} Re8 {[%emt 0:00:00]} 17. Rac1 {[%emt 0:00:00]} a5 {[%emt 0:00:00]} 18.
Nb5 {[%emt 0:00:00]} Bc5 {[%emt 0:00:00]} 19. Qh4 {[%emt 0:00:00]} a4 {[%emt 0:
00:00]} 20. c4 {[%emt 0:00:00]} N5f6 {[%emt 0:00:00]} 21. Bc3 {[%emt 0:00:00]}
e5 {[%emt 0:00:00]} 22. Nd6 {[%emt 0:00:00]} Bxd6 {[%emt 0:00:00]} 23. Rxd6 {
[%emt 0:00:00]} Ne4 {[%emt 0:00:00]} 24. Rdd1 {[%emt 0:00:00]} Nxc3 {[%emt 0:
00:00]} 25. Rxc3 {[%emt 0:00:00]} Nc5 {[%emt 0:00:00]} 26. Rd5 {[%emt 0:00:00]}
f6 {[%emt 0:00:00]} 27. Nd2 {[%emt 0:00:00]} Rb8 {[%emt 0:00:00]} 28. Qh5 {
[%emt 0:00:00]} g6 {[%emt 0:00:00]} 29. Qh4 {[%emt 0:00:00]} Rf8 {[%emt 0:00:
00]} 30. Qh6 {[%emt 0:00:00]} Qc7 {[%emt 0:00:00]} 31. Qe3 {[%emt 0:00:00]}
Rfc8 {[%emt 0:00:00]} 32. b4 {[%emt 0:00:15]} axb3 {[%emt 0:00:00]} 33. Rxc5 {
[%emt 0:00:02]} Qxc5 {[%emt 0:00:00]} 34. Qxc5 {[%emt 0:00:00]} Rxc5 {[%emt 0:
00:00]} 35. Rxb3 {[%emt 0:00:00]} Rd8 {[%emt 0:00:00]} 36. Rxb7 {[%emt 0:00:00]
} Rxd2 {[%emt 0:00:00]} 37. Bd5+ {[%emt 0:00:00]} Kh8 {[%emt 0:00:00]} 38. Rb8+
{[%emt 0:00:07]} Kg7 {[%emt 0:00:00]} 39. Rb7+ {[%emt 0:00:00]} Kh6 {[%emt 0:
00:00]} 40. h4 {[%emt 0:00:11]} Rc8 {[%emt 0:00:00]} 41. g4 {[%emt 0:00:00]}
Rd4 {[%emt 0:00:00]} 42. g5+ {[%emt 0:00:00]} fxg5 {[%emt 0:00:00]} 43. hxg5+ {
[%emt 0:00:00]} Kxg5 {[%emt 0:00:00]} 44. Rxh7 {[%emt 0:00:00]} Rf8 {[%emt 0:
00:00]} 45. Re7 {[%emt 0:00:00]} Rf5 {[%emt 0:00:00]} 46. Re6 {[%emt 0:00:00]}
Rd1+ {[%emt 0:00:00]} 47. Kg2 {[%emt 0:00:00]} Rd2 {[%emt 0:00:00]} 48. Kg3 {
[%emt 0:00:00]} Rdxf2 {[%emt 0:00:00]} 49. Be4 {[%emt 0:00:00]} Re2 {[%emt 0:
00:00]} 50. Bxf5 {[%emt 0:00:00]} gxf5 {[%emt 0:00:00]} 51. Kf3 {[%emt 0:00:00]
} Re1 {[%emt 0:00:00]} 52. Kf2 {[%emt 0:00:00]} Re4 {[%emt 0:00:00]} 53. c5 {
[%emt 0:00:00]} f4 {[%emt 0:00:00]} 0-1

[Event "Gibraltar Masters 18th"]
[Site "Gibraltar"]
[Date "2020.01.27"]
[Round "7.3"]
[White "Paravyan, David"]
[Black "Antipov, Mikhail Al."]
[Result "1-0"]
[ECO "E61"]
[WhiteElo "2629"]
[BlackElo "2562"]
[PlyCount "175"]
[EventDate "2020.01.21"]
[EventType "swiss"]
[EventRounds "10"]
[EventCountry "GGB"]
[SourceTitle "BritBase"]
[Source "John Saunders"]
[SourceDate "2021.06.05"]
[SourceVersion "1"]
[SourceVersionDate "2021.06.05"]
[SourceQuality "1"]
[TimeControl "40/100:0"]
[WhiteClock "0:00:41"]
[BlackClock "0:11:49"]

1. d4 {[%emt 0:00:00]} Nf6 {[%emt 0:00:00]} 2. c4 {[%emt 0:00:00]} g6 {[%emt 0:
00:00]} 3. Nf3 {[%emt 0:00:00]} Bg7 {[%emt 0:00:00]} 4. e3 {[%emt 0:00:00]} O-O
{[%emt 0:00:00]} 5. Be2 {[%emt 0:00:00]} d6 {[%emt 0:00:00]} 6. Nc3 {[%emt 0:
00:00]} Nbd7 {[%emt 0:00:00]} 7. e4 {[%emt 0:00:00]} e5 {[%emt 0:00:00]} 8. O-O
{[%emt 0:00:00]} h6 {[%emt 0:00:00]} 9. Re1 {[%emt 0:00:00]} c6 {[%emt 0:00:00]
} 10. Bf1 {[%emt 0:00:00]} Nh7 {[%emt 0:00:00]} 11. d5 {[%emt 0:00:00]} c5 {
[%emt 0:00:00]} 12. g3 {[%emt 0:00:00]} Ng5 {[%emt 0:00:00]} 13. Nxg5 {[%emt 0:
00:00]} hxg5 {[%emt 0:00:00]} 14. g4 {[%emt 0:00:00]} Nb8 {[%emt 0:00:00]} 15.
Bd3 {[%emt 0:00:00]} Bf6 {[%emt 0:00:00]} 16. Kg2 {[%emt 0:00:00]} Qd7 {
[%emt 0:00:00]} 17. h3 {[%emt 0:00:00]} Bd8 {[%emt 0:00:00]} 18. a3 {[%emt 0:
00:00]} a5 {[%emt 0:00:00]} 19. Bc2 {[%emt 0:00:00]} Qe7 {[%emt 0:00:00]} 20.
Be3 {[%emt 0:00:00]} Na6 {[%emt 0:00:00]} 21. Qd2 {[%emt 0:00:00]} Bd7 {
[%emt 0:00:00]} 22. Ba4 {[%emt 0:00:00]} Bxa4 {[%emt 0:00:00]} 23. Nxa4 {
[%emt 0:00:00]} f6 {[%emt 0:00:00]} 24. Rh1 {[%emt 0:00:00]} Rf7 {[%emt 0:00:
00]} 25. f3 {[%emt 0:00:00]} Rh7 {[%emt 0:00:00]} 26. Bf2 {[%emt 0:00:00]} Qd7
{[%emt 0:00:00]} 27. b3 {[%emt 0:00:00]} Rc8 {[%emt 0:00:00]} 28. Nc3 {[%emt 0:
00:00]} Nc7 {[%emt 0:00:00]} 29. h4 {[%emt 0:00:00]} gxh4 {[%emt 0:00:00]} 30.
Rxh4 {[%emt 0:00:00]} Rxh4 {[%emt 0:00:00]} 31. Bxh4 {[%emt 0:00:00]} Ne8 {
[%emt 0:00:00]} 32. Bg3 {[%emt 0:00:00]} Qg7 {[%emt 0:00:00]} 33. Qd3 {[%emt 0:
00:00]} Ra8 {[%emt 0:00:00]} 34. Rh1 {[%emt 0:00:00]} Be7 {[%emt 0:00:00]} 35.
f4 {[%emt 0:00:00]} Bf8 {[%emt 0:00:00]} 36. Ne2 {[%emt 0:01:06]} a4 {[%emt 0:
00:00]} 37. Rb1 {[%emt 0:00:00]} Qd7 {[%emt 0:00:00]} 38. f5 {[%emt 0:00:01]}
axb3 {[%emt 0:00:00]} 39. Qxb3 {[%emt 0:00:00]} Bh6 {[%emt 0:00:00]} 40. Bf2 {
[%emt 0:00:01]} Bf4 {[%emt 0:00:45]} 41. Rh1 {[%emt 0:00:00]} Qg7 {[%emt 0:00:
00]} 42. Kf1 {[%emt 0:00:00]} g5 {[%emt 0:00:00]} 43. Be1 {[%emt 0:00:00]} Ra7
{[%emt 0:00:00]} 44. a4 {[%emt 0:00:00]} Ra8 {[%emt 0:00:00]} 45. a5 {[%emt 0:
00:00]} Rd8 {[%emt 0:00:00]} 46. Kf2 {[%emt 0:00:00]} Qc7 {[%emt 0:00:00]} 47.
Qh3 {[%emt 0:00:00]} Qg7 {[%emt 0:00:00]} 48. Qb3 {[%emt 0:00:00]} Qc7 {
[%emt 0:00:00]} 49. Qh3 {[%emt 0:00:00]} Qg7 {[%emt 0:00:00]} 50. Qh5 {[%emt 0:
00:00]} Kf8 {[%emt 0:00:00]} 51. Bc3 {[%emt 0:00:00]} Rd7 {[%emt 0:00:00]} 52.
Rh3 {[%emt 0:00:00]} Ke7 {[%emt 0:00:00]} 53. Qh8 {[%emt 0:00:00]} Qxh8 {
[%emt 0:00:00]} 54. Rxh8 {[%emt 0:00:00]} Kf7 {[%emt 0:00:00]} 55. Rh7+ {
[%emt 0:00:00]} Ng7 {[%emt 0:00:00]} 56. Rh8 {[%emt 0:00:00]} Ne8 {[%emt 0:00:
00]} 57. Ke1 {[%emt 0:01:39]} Rd8 {[%emt 0:00:00]} 58. Kd1 {[%emt 0:00:00]} Kg7
{[%emt 0:00:00]} 59. Rh3 {[%emt 0:00:00]} Ra8 {[%emt 0:00:00]} 60. Be1 {
[%emt 0:00:00]} Ra6 {[%emt 0:00:00]} 61. Rb3 {[%emt 0:00:00]} Ra7 {[%emt 0:00:
00]} 62. Kc2 {[%emt 0:00:00]} Kf7 {[%emt 0:00:00]} 63. Kb2 {[%emt 0:00:00]} Ke7
{[%emt 0:00:00]} 64. Rh3 {[%emt 0:00:00]} Kf7 {[%emt 0:00:00]} 65. Rb3 {
[%emt 0:00:00]} Ke7 {[%emt 0:00:00]} 66. Ka3 {[%emt 0:00:00]} Nc7 {[%emt 0:00:
00]} 67. Ka4 {[%emt 0:00:00]} Na8 {[%emt 0:00:00]} 68. Kb5 {[%emt 0:00:00]} Kf8
{[%emt 0:00:00]} 69. Ra3 {[%emt 0:00:00]} Ra6 {[%emt 0:00:00]} 70. Rh3 {
[%emt 0:00:00]} Kg7 {[%emt 0:00:00]} 71. Rb3 {[%emt 0:00:00]} Ra7 {[%emt 0:00:
00]} 72. Rb1 {[%emt 0:00:00]} Be3 {[%emt 0:00:00]} 73. Ka4 {[%emt 0:00:00]} Bd4
{[%emt 0:00:00]} 74. Bd2 {[%emt 0:00:00]} Kf7 {[%emt 0:00:00]} 75. Nc1 {
[%emt 0:00:00]} Bf2 {[%emt 0:00:00]} 76. Rb3 {[%emt 0:00:00]} Nc7 {[%emt 0:00:
00]} 77. Nd3 {[%emt 0:00:00]} Bd4 {[%emt 0:00:00]} 78. Ne1 {[%emt 0:00:00]} Bf2
{[%emt 0:00:00]} 79. Nc2 {[%emt 0:00:00]} Ke7 {[%emt 0:00:00]} 80. Na3 {
[%emt 0:00:00]} Kd7 {[%emt 0:00:00]} 81. Nb5 {[%emt 0:00:00]} Ra8 {[%emt 0:00:
00]} 82. Nc3 {[%emt 0:01:36]} Ra7 {[%emt 0:00:00]} 83. Nd1 {[%emt 0:00:00]} Bh4
{[%emt 0:00:00]} 84. Ne3 {[%emt 0:00:00]} Ke7 {[%emt 0:00:00]} 85. Ng2 {
[%emt 0:00:00]} Kf7 {[%emt 0:00:00]} 86. Nxh4 {[%emt 0:00:00]} gxh4 {[%emt 0:
00:00]} 87. Be1 {[%emt 0:00:01]} Na8 {[%emt 0:00:00]} 88. Kb5 {[%emt 0:00:00]}
1-0

[Event "Gibraltar Masters 18th"]
[Site "Gibraltar"]
[Date "2020.01.27"]
[Round "7.4"]
[White "Karthikeyan, Murali"]
[Black "Vachier-Lagrave, Maxime"]
[Result "1/2-1/2"]
[ECO "B90"]
[WhiteElo "2606"]
[BlackElo "2770"]
[PlyCount "60"]
[EventDate "2020.01.21"]
[EventType "swiss"]
[EventRounds "10"]
[EventCountry "GGB"]
[SourceTitle "BritBase"]
[Source "John Saunders"]
[SourceDate "2021.06.05"]
[SourceVersion "1"]
[SourceVersionDate "2021.06.05"]
[SourceQuality "1"]
[TimeControl "40/100:0"]
[WhiteClock "0:15:19"]
[BlackClock "0:50:42"]

1. e4 {[%emt 0:00:00]} c5 {[%emt 0:00:00]} 2. Nf3 {[%emt 0:00:08]} d6 {[%emt 0:
00:00]} 3. d4 {[%emt 0:00:00]} cxd4 {[%emt 0:00:00]} 4. Nxd4 {[%emt 0:00:00]}
Nf6 {[%emt 0:00:00]} 5. Nc3 {[%emt 0:00:00]} a6 {[%emt 0:00:00]} 6. h3 {
[%emt 0:00:00]} e5 {[%emt 0:00:00]} 7. Nde2 {[%emt 0:00:00]} h5 {[%emt 0:00:00]
} 8. g3 {[%emt 0:00:00]} Nbd7 {[%emt 0:00:00]} 9. a4 {[%emt 0:00:00]} b6 {
[%emt 0:00:00]} 10. Bg2 {[%emt 0:00:00]} Bb7 {[%emt 0:00:00]} 11. O-O {[%emt 0:
00:00]} Be7 {[%emt 0:00:00]} 12. Nd5 {[%emt 0:00:00]} Nxd5 {[%emt 0:00:00]} 13.
exd5 {[%emt 0:00:00]} O-O {[%emt 0:00:00]} 14. Nc3 {[%emt 0:00:00]} h4 {
[%emt 0:00:00]} 15. g4 {[%emt 0:00:00]} Bg5 {[%emt 0:00:00]} 16. Be3 {[%emt 0:
00:00]} Rc8 {[%emt 0:00:00]} 17. Qd2 {[%emt 0:00:00]} Bxe3 {[%emt 0:00:00]} 18.
fxe3 {[%emt 0:00:00]} a5 {[%emt 0:00:00]} 19. Rf2 {[%emt 0:00:00]} Nc5 {
[%emt 0:00:00]} 20. Ne4 {[%emt 0:00:00]} Nxe4 {[%emt 0:00:00]} 21. Bxe4 {
[%emt 0:00:00]} g6 {[%emt 0:00:00]} 22. b3 {[%emt 0:00:00]} Qg5 {[%emt 0:00:00]
} 23. Kh1 {[%emt 0:00:00]} Kg7 {[%emt 0:00:00]} 24. Raf1 {[%emt 0:00:00]} Rc7 {
[%emt 0:00:00]} 25. c4 {[%emt 0:00:00]} Bc8 {[%emt 0:00:00]} 26. Bc2 {[%emt 0:
00:00]} f6 {[%emt 0:00:00]} 27. e4 {[%emt 0:00:00]} Qxd2 {[%emt 0:00:00]} 28.
Rxd2 {[%emt 0:00:00]} Kh6 {[%emt 0:00:00]} 29. Rdf2 {[%emt 0:00:00]} Rcf7 {
[%emt 0:00:00]} 30. Kh2 {[%emt 0:00:00]} Kg5 {[%emt 0:00:00]} 1/2-1/2

[Event "Gibraltar Masters 18th"]
[Site "Gibraltar"]
[Date "2020.01.27"]
[Round "7.5"]
[White "Sanal, Vahap"]
[Black "Alekseenko, Kirill"]
[Result "1/2-1/2"]
[ECO "B33"]
[WhiteElo "2569"]
[BlackElo "2704"]
[PlyCount "60"]
[EventDate "2020.01.21"]
[EventType "swiss"]
[EventRounds "10"]
[EventCountry "GGB"]
[SourceTitle "BritBase"]
[Source "John Saunders"]
[SourceDate "2021.06.05"]
[SourceVersion "1"]
[SourceVersionDate "2021.06.05"]
[SourceQuality "1"]
[TimeControl "40/100:0"]
[WhiteClock "0:56:56"]
[BlackClock "0:43:54"]

1. e4 {[%emt 0:00:00]} c5 {[%emt 0:00:00]} 2. Nc3 {[%emt 0:00:00]} Nc6 {
[%emt 0:00:00]} 3. Nge2 {[%emt 0:00:00]} Nf6 {[%emt 0:00:00]} 4. d4 {[%emt 0:
00:00]} cxd4 {[%emt 0:00:00]} 5. Nxd4 {[%emt 0:00:00]} e5 {[%emt 0:00:00]} 6.
Ndb5 {[%emt 0:00:00]} d6 {[%emt 0:00:00]} 7. Bg5 {[%emt 0:00:00]} a6 {[%emt 0:
00:00]} 8. Na3 {[%emt 0:00:00]} b5 {[%emt 0:00:00]} 9. Nd5 {[%emt 0:00:00]} Be7
{[%emt 0:00:00]} 10. Bxf6 {[%emt 0:00:00]} Bxf6 {[%emt 0:00:00]} 11. c4 {
[%emt 0:00:00]} b4 {[%emt 0:00:00]} 12. Nc2 {[%emt 0:00:00]} O-O {[%emt 0:00:
00]} 13. g3 {[%emt 0:00:00]} a5 {[%emt 0:00:00]} 14. h4 {[%emt 0:00:00]} g6 {
[%emt 0:00:00]} 15. Bg2 {[%emt 0:00:00]} Be6 {[%emt 0:00:00]} 16. O-O {[%emt 0:
00:00]} Bg7 {[%emt 0:00:00]} 17. Qd2 {[%emt 0:00:00]} h5 {[%emt 0:00:00]} 18.
Rad1 {[%emt 0:00:00]} Qb8 {[%emt 0:00:00]} 19. b3 {[%emt 0:00:00]} Qb7 {
[%emt 0:00:00]} 20. Kh1 {[%emt 0:00:00]} a4 {[%emt 0:00:00]} 21. Ndxb4 {
[%emt 0:00:00]} axb3 {[%emt 0:00:00]} 22. axb3 {[%emt 0:00:00]} Nxb4 {[%emt 0:
00:00]} 23. Qxb4 {[%emt 0:00:00]} Qxb4 {[%emt 0:00:00]} 24. Nxb4 {[%emt 0:00:
00]} Rab8 {[%emt 0:00:00]} 25. Nc6 {[%emt 0:00:00]} Rxb3 {[%emt 0:00:00]} 26.
Rxd6 {[%emt 0:00:00]} Bxc4 {[%emt 0:00:00]} 27. Rc1 {[%emt 0:00:00]} Be6 {
[%emt 0:00:00]} 28. Nd8 {[%emt 0:00:00]} Bg4 {[%emt 0:00:00]} 29. Kg1 {[%emt 0:
00:00]} Bf6 {[%emt 0:00:00]} 30. Rxf6 {[%emt 0:00:00]} Rxd8 {[%emt 0:00:00]}
1/2-1/2

[Event "Gibraltar Masters 18th"]
[Site "Gibraltar"]
[Date "2020.01.27"]
[Round "7.6"]
[White "Adams, Michael"]
[Black "Studer, Noel"]
[Result "1/2-1/2"]
[ECO "A20"]
[WhiteElo "2694"]
[BlackElo "2546"]
[PlyCount "89"]
[EventDate "2020.01.21"]
[EventType "swiss"]
[EventRounds "10"]
[EventCountry "GGB"]
[SourceTitle "BritBase"]
[Source "John Saunders"]
[SourceDate "2021.06.05"]
[SourceVersion "1"]
[SourceVersionDate "2021.06.05"]
[SourceQuality "1"]
[TimeControl "40/100:0"]
[WhiteClock "0:01:48"]
[BlackClock "0:02:39"]

1. c4 {[%emt 0:00:00]} e5 {[%emt 0:00:00]} 2. g3 {[%emt 0:00:00]} Nf6 {[%emt 0:
00:00]} 3. Bg2 {[%emt 0:00:00]} d5 {[%emt 0:00:00]} 4. cxd5 {[%emt 0:00:00]}
Nxd5 {[%emt 0:00:00]} 5. Nf3 {[%emt 0:00:00]} Nc6 {[%emt 0:00:00]} 6. O-O {
[%emt 0:00:00]} Nb6 {[%emt 0:00:00]} 7. b3 {[%emt 0:00:00]} Bd6 {[%emt 0:00:00]
} 8. Nc3 {[%emt 0:00:00]} O-O {[%emt 0:00:00]} 9. d4 {[%emt 0:00:00]} Bb4 {
[%emt 0:00:00]} 10. Bb2 {[%emt 0:00:00]} exd4 {[%emt 0:00:00]} 11. Nb5 {
[%emt 0:00:00]} d3 {[%emt 0:00:00]} 12. Qxd3 {[%emt 0:00:00]} Qxd3 {[%emt 0:00:
00]} 13. exd3 {[%emt 0:00:00]} Nd5 {[%emt 0:00:00]} 14. Ne5 {[%emt 0:00:00]}
Nce7 {[%emt 0:00:00]} 15. a3 {[%emt 0:00:00]} Ba5 {[%emt 0:00:00]} 16. Nc4 {
[%emt 0:00:00]} Bb6 {[%emt 0:00:00]} 17. Rac1 {[%emt 0:00:00]} c6 {[%emt 0:00:
00]} 18. Nbd6 {[%emt 0:00:00]} Bc7 {[%emt 0:00:00]} 19. Rfe1 {[%emt 0:00:00]}
Rb8 {[%emt 0:00:00]} 20. Nxc8 {[%emt 0:00:00]} Rfxc8 {[%emt 0:00:00]} 21. Bd4 {
[%emt 0:00:00]} Ra8 {[%emt 0:00:00]} 22. Bc5 {[%emt 0:00:00]} Ng6 {[%emt 0:00:
00]} 23. b4 {[%emt 0:00:00]} Rd8 {[%emt 0:00:00]} 24. Na5 {[%emt 0:00:00]} Bxa5
{[%emt 0:00:00]} 25. bxa5 {[%emt 0:00:00]} b6 {[%emt 0:00:00]} 26. Be3 {
[%emt 0:00:00]} Rac8 {[%emt 0:00:00]} 27. Bxd5 {[%emt 0:00:00]} Rxd5 {[%emt 0:
00:00]} 28. axb6 {[%emt 0:00:00]} axb6 {[%emt 0:00:00]} 29. Bxb6 {[%emt 0:00:
00]} Ne5 {[%emt 0:00:00]} 30. Re2 {[%emt 0:00:00]} Nd7 {[%emt 0:00:00]} 31. Be3
{[%emt 0:00:00]} Rxd3 {[%emt 0:00:00]} 32. Ra2 {[%emt 0:00:00]} Nf6 {[%emt 0:
00:00]} 33. a4 {[%emt 0:00:00]} Nd5 {[%emt 0:00:00]} 34. Rd2 {[%emt 0:00:00]}
Rxd2 {[%emt 0:00:00]} 35. Bxd2 {[%emt 0:00:00]} Kf8 {[%emt 0:00:00]} 36. Kf1 {
[%emt 0:00:00]} c5 {[%emt 0:00:14]} 37. Ke2 {[%emt 0:00:00]} c4 {[%emt 0:00:00]
} 38. a5 {[%emt 0:00:00]} Ke7 {[%emt 0:00:00]} 39. a6 {[%emt 0:00:00]} c3 {
[%emt 0:00:35]} 40. Be3 {[%emt 0:00:18]} Nxe3 {[%emt 0:00:00]} 41. Kxe3 {
[%emt 0:02:07]} c2 {[%emt 0:01:10]} 42. Kd2 {[%emt 0:00:18]} Rc6 {[%emt 0:00:
00]} 43. Ra1 {[%emt 0:00:00]} c1=Q+ {[%emt 0:00:00]} 44. Rxc1 {[%emt 0:00:00]}
Rxa6 {[%emt 0:00:00]} 45. Ke3 {[%emt 0:00:00]} 1/2-1/2

[Event "Gibraltar Masters 18th"]
[Site "Gibraltar"]
[Date "2020.01.27"]
[Round "7.7"]
[White "Cheparinov, Ivan"]
[Black "Ibarra Jerez, Jose Carlos"]
[Result "1/2-1/2"]
[ECO "B08"]
[WhiteElo "2686"]
[BlackElo "2548"]
[PlyCount "68"]
[EventDate "2020.01.21"]
[EventType "swiss"]
[EventRounds "10"]
[EventCountry "GGB"]
[SourceTitle "BritBase"]
[Source "John Saunders"]
[SourceDate "2021.06.05"]
[SourceVersion "1"]
[SourceVersionDate "2021.06.05"]
[SourceQuality "1"]
[TimeControl "40/100:0"]
[WhiteClock "0:03:27"]
[BlackClock "0:07:36"]

1. e4 {[%emt 0:00:00]} Nc6 {[%emt 0:00:00]} 2. Nf3 {[%emt 0:00:00]} d6 {
[%emt 0:00:00]} 3. d4 {[%emt 0:00:00]} Nf6 {[%emt 0:00:00]} 4. Nc3 {[%emt 0:00:
00]} g6 {[%emt 0:00:00]} 5. d5 {[%emt 0:00:00]} Nb8 {[%emt 0:00:00]} 6. Be2 {
[%emt 0:00:00]} Bg7 {[%emt 0:00:00]} 7. O-O {[%emt 0:00:00]} O-O {[%emt 0:00:
00]} 8. Re1 {[%emt 0:00:00]} e5 {[%emt 0:00:00]} 9. dxe6 {[%emt 0:00:00]} Bxe6
{[%emt 0:00:00]} 10. Nd4 {[%emt 0:00:00]} Bd7 {[%emt 0:00:00]} 11. Bg5 {
[%emt 0:00:00]} h6 {[%emt 0:00:00]} 12. Be3 {[%emt 0:00:00]} Re8 {[%emt 0:00:
00]} 13. Qd2 {[%emt 0:00:00]} Kh7 {[%emt 0:00:00]} 14. f3 {[%emt 0:00:00]} Nc6
{[%emt 0:00:00]} 15. Nxc6 {[%emt 0:00:00]} Bxc6 {[%emt 0:00:00]} 16. Bc4 {
[%emt 0:00:00]} Re7 {[%emt 0:00:00]} 17. a4 {[%emt 0:00:00]} Qh8 {[%emt 0:00:
00]} 18. Rad1 {[%emt 0:00:00]} a6 {[%emt 0:00:00]} 19. Bf2 {[%emt 0:00:00]}
Rae8 {[%emt 0:00:00]} 20. a5 {[%emt 0:00:00]} Kg8 {[%emt 0:00:00]} 21. Bd4 {
[%emt 0:00:00]} Nd7 {[%emt 0:00:00]} 22. Bxg7 {[%emt 0:00:00]} Qxg7 {[%emt 0:
00:00]} 23. b4 {[%emt 0:00:00]} Nf6 {[%emt 0:00:00]} 24. Bd5 {[%emt 0:00:00]}
Nxd5 {[%emt 0:00:00]} 25. Nxd5 {[%emt 0:00:00]} Bxd5 {[%emt 0:00:00]} 26. Qxd5
{[%emt 0:00:00]} Rb8 {[%emt 0:00:00]} 27. Qc4 {[%emt 0:00:00]} Qf6 {[%emt 0:00:
00]} 28. Re3 {[%emt 0:00:00]} Kg7 {[%emt 0:00:00]} 29. Rb3 {[%emt 0:00:00]} Ra8
{[%emt 0:00:00]} 30. Qd5 {[%emt 0:00:00]} Rb8 {[%emt 0:00:00]} 31. c4 {[%emt 0:
00:00]} Re5 {[%emt 0:00:00]} 32. Qd4 {[%emt 0:00:00]} b6 {[%emt 0:00:00]} 33.
axb6 {[%emt 0:00:00]} Rxb6 {[%emt 0:00:00]} 34. Rdd3 {[%emt 0:00:00]} Re8 {
[%emt 0:00:00]} 1/2-1/2

[Event "Gibraltar Masters 18th"]
[Site "Gibraltar"]
[Date "2020.01.27"]
[Round "7.8"]
[White "Adhiban, Baskaran"]
[Black "Werle, Jan"]
[Result "1/2-1/2"]
[ECO "C67"]
[WhiteElo "2654"]
[BlackElo "2545"]
[PlyCount "61"]
[EventDate "2020.01.21"]
[EventType "swiss"]
[EventRounds "10"]
[EventCountry "GGB"]
[SourceTitle "BritBase"]
[Source "John Saunders"]
[SourceDate "2021.06.05"]
[SourceVersion "1"]
[SourceVersionDate "2021.06.05"]
[SourceQuality "1"]
[TimeControl "40/100:0"]
[WhiteClock "1:04:42"]
[BlackClock "0:38:49"]

1. e4 {[%emt 0:00:00]} e5 {[%emt 0:00:00]} 2. Nf3 {[%emt 0:00:00]} Nc6 {
[%emt 0:00:00]} 3. Bb5 {[%emt 0:00:00]} Nf6 {[%emt 0:00:00]} 4. O-O {[%emt 0:
00:00]} Nxe4 {[%emt 0:00:00]} 5. Re1 {[%emt 0:00:00]} Nd6 {[%emt 0:00:00]} 6.
Nxe5 {[%emt 0:00:00]} Be7 {[%emt 0:00:00]} 7. Bf1 {[%emt 0:00:00]} Nxe5 {
[%emt 0:00:00]} 8. Rxe5 {[%emt 0:00:00]} O-O {[%emt 0:00:00]} 9. d4 {[%emt 0:
00:00]} Bf6 {[%emt 0:00:00]} 10. Re1 {[%emt 0:00:00]} Re8 {[%emt 0:00:00]} 11.
Bf4 {[%emt 0:00:00]} Rxe1 {[%emt 0:00:00]} 12. Qxe1 {[%emt 0:00:00]} Ne8 {
[%emt 0:00:00]} 13. Nc3 {[%emt 0:00:00]} Bxd4 {[%emt 0:00:00]} 14. Nd5 {
[%emt 0:00:00]} d6 {[%emt 0:00:00]} 15. Bg5 {[%emt 0:00:00]} f6 {[%emt 0:00:00]
} 16. Bh4 {[%emt 0:00:00]} Bxb2 {[%emt 0:00:00]} 17. Rb1 {[%emt 0:00:00]} Be5 {
[%emt 0:00:00]} 18. f4 {[%emt 0:00:00]} c6 {[%emt 0:00:00]} 19. fxe5 {[%emt 0:
00:00]} cxd5 {[%emt 0:00:00]} 20. exf6 {[%emt 0:00:00]} Nxf6 {[%emt 0:00:00]}
21. Bd3 {[%emt 0:00:00]} Bd7 {[%emt 0:00:00]} 22. Qg3 {[%emt 0:00:00]} Bc6 {
[%emt 0:00:00]} 23. Bg5 {[%emt 0:00:00]} h6 {[%emt 0:00:00]} 24. Bxh6 {[%emt 0:
00:00]} Qe7 {[%emt 0:00:00]} 25. Rf1 {[%emt 0:00:00]} Rf8 {[%emt 0:00:00]} 26.
Bg5 {[%emt 0:00:00]} Qe5 {[%emt 0:00:00]} 27. Bf4 {[%emt 0:00:00]} Qd4+ {
[%emt 0:00:00]} 28. Be3 {[%emt 0:00:00]} Qe5 {[%emt 0:00:00]} 29. Bf4 {[%emt 0:
00:00]} Qd4+ {[%emt 0:00:00]} 30. Be3 {[%emt 0:00:00]} Qe5 {[%emt 0:00:00]} 31.
Bf4 {[%emt 0:00:00]} 1/2-1/2

[Event "Gibraltar Masters 18th"]
[Site "Gibraltar"]
[Date "2020.01.27"]
[Round "7.10"]
[White "Gagare, Shardul"]
[Black "Donchenko, Alexander"]
[Result "1/2-1/2"]
[ECO "D38"]
[WhiteElo "2481"]
[BlackElo "2647"]
[PlyCount "58"]
[EventDate "2020.01.21"]
[EventType "swiss"]
[EventRounds "10"]
[EventCountry "GGB"]
[SourceTitle "BritBase"]
[Source "John Saunders"]
[SourceDate "2021.06.05"]
[SourceVersion "1"]
[SourceVersionDate "2021.06.05"]
[SourceQuality "1"]
[TimeControl "40/100:0"]
[WhiteClock "0:00:43"]
[BlackClock "0:13:50"]

1. d4 {[%emt 0:00:00]} Nf6 {[%emt 0:00:00]} 2. c4 {[%emt 0:00:00]} e6 {[%emt 0:
00:00]} 3. Nf3 {[%emt 0:00:00]} d5 {[%emt 0:00:00]} 4. Nc3 {[%emt 0:00:00]} Bb4
{[%emt 0:00:00]} 5. Bg5 {[%emt 0:00:00]} h6 {[%emt 0:00:00]} 6. Bxf6 {[%emt 0:
00:00]} Qxf6 {[%emt 0:00:00]} 7. Qb3 {[%emt 0:00:00]} c5 {[%emt 0:00:00]} 8.
cxd5 {[%emt 0:00:00]} exd5 {[%emt 0:00:00]} 9. a3 {[%emt 0:00:00]} cxd4 {
[%emt 0:00:00]} 10. axb4 {[%emt 0:00:00]} dxc3 {[%emt 0:00:00]} 11. Qxc3 {
[%emt 0:00:00]} Nd7 {[%emt 0:00:00]} 12. Qxf6 {[%emt 0:00:00]} Nxf6 {[%emt 0:
00:00]} 13. e3 {[%emt 0:00:00]} Ke7 {[%emt 0:00:00]} 14. Nd4 {[%emt 0:00:00]}
Be6 {[%emt 0:00:00]} 15. Bd3 {[%emt 0:00:00]} a6 {[%emt 0:00:00]} 16. Kd2 {
[%emt 0:00:00]} Rhc8 {[%emt 0:00:00]} 17. Ra5 {[%emt 0:00:00]} Rab8 {[%emt 0:
00:00]} 18. f3 {[%emt 0:00:00]} Nd7 {[%emt 0:00:00]} 19. f4 {[%emt 0:00:00]}
Nf6 {[%emt 0:00:00]} 20. Rc5 {[%emt 0:00:00]} Kd6 {[%emt 0:00:00]} 21. Rhc1 {
[%emt 0:00:00]} Bd7 {[%emt 0:00:00]} 22. h3 {[%emt 0:00:00]} g6 {[%emt 0:00:00]
} 23. Nf3 {[%emt 0:00:00]} Rd8 {[%emt 0:00:00]} 24. Ne5 {[%emt 0:00:00]} Be8 {
[%emt 0:00:00]} 25. Nf3 {[%emt 0:01:01]} Nd7 {[%emt 0:00:00]} 26. R5c3 {
[%emt 0:00:00]} Nf6 {[%emt 0:00:00]} 27. Rc5 {[%emt 0:00:00]} Nd7 {[%emt 0:00:
00]} 28. R5c3 {[%emt 0:00:00]} Nf6 {[%emt 0:00:00]} 29. Rc5 {[%emt 0:00:00]}
Nd7 1/2-1/2